Workbook

Sheet Лист1
A1: Мониторинг выявления соответствия сформированности умений и знаний требованиям ФГОС СПО (по итогам промежуточной аттестации) гр. МР-75 | I1: Мониторинг выявления соответствия сформированности умений и знаний требованиям ФГОС СПО (по итогам промежуточной аттестации) гр. РАС-77 | Q1: Мониторинг выявления соответствия сформированности умений и знаний требованиям ФГОС СПО (по итогам промежуточной аттестации) гр. ОС-76 | Y1: Мониторинг выявления соответствия сформированности умений и знаний требованиям ФГОС СПО (по итогам промежуточной аттестации) гр. МТО-78
A3: № | B3: Фио преподавателя | C3: Дисциплина/МДК | E3: Кол-во обучающихся | F3: Качество успеваемости, % | G3: Качество успеваемости группы, % | I3: № | J3: Фио преподавателя | K3: Дисциплина/МДК | M3: Кол-во обучающихся | N3: Качество успеваемости, % | O3: Качество успеваемости группы | Q3: № | R3: Фио преподавателя | S3: Дисциплина/МДК | U3: Кол-во обучающихся | V3: Качество успеваемости, % | W3: Качество успеваемости группы | Y3: № | Z3: Фио преподавателя | AA3: Дисциплина/МДК | AC3: Кол-во обучающихся | AD3: Качество успеваемости, % | AE3: Качество успеваемости группы
A5: 1 | B5: Лентьев С.П. | C5: Основы безопасности жизнедеятельности | E5: 28 | F5: 71.43 | G5: =SUM(F5:F14)/10 -> 70.9 | I5: 1 | J5: Замалетдинова Л.А. | K5: Русский язык | M5: 28 | N5: 85.71 | O5: =SUM(N5:N17)/13 -> 90.89 | Q5: 1 | R5: Попова О.П. | S5: Физ.культура | U5: 25 | V5: 71.97 | W5: =SUM(V5:V12)/8 -> 62.41 | Y5: 1 | Z5: Валеева А.Р. | AA5: Естествознания (биология) | AC5: 35 | AD5: 67.74 | AE5: =SUM(AD5:AD17)/13 -> 87.91
A6: 2 | B6: Прусова И.А. | C6: Основы черчения | E6: 28 | F6: 84.62 | I6: 2 | J6: Замалетдинова Л.А. | K6: Литература | M6: 28 | N6: 85.71 | Q6: 2 | R6: Чичарина Л.А. | S6: Общие основы технологии металлообработки и работ на металлорежущих станках | U6: 25 | V6: 73.91 | Y6: 2 | Z6: Замалетдинова Л.А. | AA6: Русский язык | AC6: 35 | AD6: 83.87
A7: 3 | B7: Мусива М.В./ Ульянова Е.С | C7: Информатика | E7: 28 | F7: 92.31 | I7: 3 | J7: Хакимова Г.Р. | K7: Иностранный язык | M7: 28 | N7: 92.86 | Q7: 3 | R7: Сионков Д.И. | S7: МДК.01.01 Изготовление деталей на металлорежущих станках различного вида | U7: 25 | V7: 38.87 | Y7: 3 | Z7: Замалетдинова Л.А. | AA7: Литература | AC7: 35 | AD7: 90.32
A8: 4 | B8: Закирова Г.Х | C8: ПМ.02 Выполнение типовых слесарных и слесарно-сборочных работ УП | E8: 28 | F8: 92.59 | I8: 4 | J8: Садыкова Р.З. | K8: Математика | M8: 28 | N8: 85.71 | Q8: 4 | R8: Сионков Д.И. | S8: УП.01Изготовление деталей на металлорежущих станках различного вида и типа по стадиям технологического процесса | U8: 25 | V8: 40 | Y8: 4 | Z8: Гилазова Г.Х./Хакимова Г.Р. | AA8: Иностранный язык | AC8: 35 | AD8: 93.33
A9: 5 | B9: Габидуллина Г.М. | C9: Родная литература | E9: 28 | F9: 96.43 | I9: 5 | J9: Попова А.А. | K9: История | M9: 28 | N9: 82.14 | Q9: 5 | R9: Шестакова Л.А. | S9: ПП.01 Изготовление деталей на металлорежущих станках различного вида и типа по стадиям технологического процесса | U9: 25 | V9: 89.47 | Y9: 5 | Z9: Садыкова Р.З. | AA9: Математика | AC9: 35 | AD9: 87.1
A10: 6 | B10: Замалетдинова Л.А. | C10: Литература | E10: 28 | F10: 72 | I10: 6 | J10: Усманова В.Н. | K10: Физическая культура | M10: 28 | N10: 100 | Q10: 6 | S10: квалификационный экзамен по ПМ.01 | U10: 25 | V10: 50 | Y10: 6 | Z10: Попова А.А. | AA10: История | AC10: 35 | AD10: 93.55
A11: 7 | B11: Усманова В.Н. | C11: Физическая культура | E11: 28 | F11: 28 | I11: 7 | J11: Ливадная А.А. | K11: Основы безопасности жизнидеятельности | M11: 28 | N11: 85.71 | Q11: 7 | R11: Прусова А.Г. | S11: Техническая графика | U11: 25 | V11: 68.42 | Y11: 7 | Z11: Попова О.П. | AA11: Физическая культура | AC11: 35 | AD11: 100
A12: 8 | B12: Садыкова Р.З. | C12: Метематика | E12: 28 | F12: 82.14 | I12: 8 | J12: Самойлова Л.А. | K12: Астрономия | M12: 28 | N12: 100 | Q12: 8 | R12: Мурашов А.Ф. | S12: Основы электротехники | U12: 25 | V12: 66.67 | Y12: 8 | Z12: Лентьев С.П. | AA12: Основы безопасности жизнедеятельности | AC12: 35 | AD12: 90.32
A13: 9 | B13: Загидуллин Р.М. | C13: МДК 02.02 Теоретические основы механической обработки деталей РЭА, приборов и устройств | F13: 82.14 | I13: 9 | J13: Ульянова Е.С. | K13: Информатика | M13: 28 | N13: 100 | Q13: 9 | Y13: 9 | Z13: Самойлова Л.А. | AA13: Астрономия | AC13: 35 | AD13: 80
A14: 10 | B14: Закирова Г.Х | C14: ПП.02 | F14: 100 | I14: 10 | J14: Самойлова Л.А. | K14: Физика | M14: 28 | N14: 100 | Q14: 10 | Y14: 10 | Z14: Ульянова Е.С./Мусина М.В. | AA14: Информатика | AC14: 35 | AD14: 100
A15: 11 | I15: 11 | J15: Валеева А.Р. | K15: Естествознание (Биология) | M15: 28 | N15: 85.19 | Q15: 11 | Y15: 11 | Z15: Салихов А.Ш. | AA15: Физика | AC15: 35 | AD15: 73.33
A16: 12 | I16: 12 | J16: Гайнутдинова Л.П. | K16: Естествознания (химия) | M16: 28 | N16: 85.71 | Q16: 12 | Y16: 12 | Z16: Гайнутдинова Л.П. | AA16: Химия | AC16: 35 | AD16: 83.33
A17: 13 | I17: 13 | J17: Габдуллина Г.М. | K17: Родная литература | M17: 28 | N17: 92.86 | Q17: 13 | Y17: 13 | Z17: Габдуллина Г.М. | AA17: Родная литература | AC17: 35 | AD17: 100
A18: 14 | I18: 14 | Q18: 14 | Y18: 14
A19: 15 | I19: 15 | Q19: 15 | Y19: 15
A20: 16 | I20: 16 | Q20: 16 | Y20: 16
A21: 17 | I21: 17 | Q21: 17 | Y21: 17
A22: 18 | I22: 18 | Q22: 18 | Y22: 18
A23: 19 | I23: 19 | Q23: 19 | Y23: 19
A24: 20 | I24: 20 | Q24: 20 | Y24: 20
A25: 21 | I25: 21 | Q25: 21 | Y25: 21
A26: 22 | I26: 22 | Q26: 22 | Y26: 22
A27: 23 | I27: 23 | Q27: 23 | Y27: 23
A28: 24 | I28: 24 | Q28: 24 | Y28: 24
A29: 25 | I29: 25 | Q29: 25 | Y29: 25
A30: 26 | I30: 26 | Q30: 26 | Y30: 26
A31: 27 | I31: 27 | Q31: 27 | Y31: 27
A32: 28 | I32: 28 | Q32: 28 | Y32: 28
A33: 29 | I33: 29 | Q33: 29 | Y33: 29
A34: Мониторинг выявления соответствия сформированности умений и знаний требованиям ФГОС СПО (по итогам промежуточной аттестации) гр. КС-79 | I34: Мониторинг выявления соответствия сформированности умений и знаний требованиям ФГОС СПО (по итогам промежуточной аттестации) гр. ТМ-80 | Q34: Мониторинг выявления соответствия сформированности умений и знаний требованиям ФГОС СПО (по итогам промежуточной аттестации) гр. УК-81 | Y34: Мониторинг выявления соответствия сформированности умений и знаний требованиям ФГОС СПО (по итогам промежуточной аттестации) гр. СКД-82
A36: № | B36: Фио преподавателя | C36: Дисциплина/МДК | E36: Кол-во обучающихся | F36: Качество успеваемости, % | G36: Качество успеваемости группы | I36: № | J36: Фио преподавателя | K36: Дисциплина/МДК | M36: Кол-во обучающихся | N36: Качество успеваемости, % | O36: Качество успеваемости группы | Q36: № | R36: Фио преподавателя | S36: Дисциплина/МДК | U36: Кол-во обучающихся | V36: Качество успеваемости, % | W36: Качество успеваемости группы | Y36: № | Z36: Фио преподавателя | AA36: Дисциплина/МДК | AC36: Кол-во обучающихся | AD36: Качество успеваемости, % | AE36: Качество успеваемости группы
A38: 1 | B38: Габдуллина Г.М. | C38: Родная литература | E38: 34 | F38: 100 | G38: =SUM(F38:F50)/13 -> 89.92 | I38: 1 | J38: Валеева А.Р. | K38: Естествознания (Биология) | M38: 34 | N38: 65.52 | O38: =SUM(N38:N50)/13 -> 79.66 | Q38: 1 | R38: Валеева А.Р. | S38: Естествознания (Биология) | U38: 29 | V38: 75 | W38: =SUM(V38:V50)/13 -> 79.49 | Y38: 1 | Z38: Валеева А.Р. | AA38: Естествознания (Биология) | AC38: 25 | AD38: 91.67 | AE38: =SUM(AD38:AD50)/13 -> 86.40
A39: 2 | B39: Габдулхаков Л.З. | C39: Русский язык | E39: 34 | F39: 100 | I39: 2 | J39: Габдулхаков Л.З. | K39: Русский язык | M39: 34 | N39: 72.41 | Q39: 2 | R39: Замалетдинова Л.А. | S39: Русский язык | U39: 29 | V39: 83.33 | Y39: 2 | Z39: Замалетдинова Л.А. | AA39: Русский язык | AC39: 25 | AD39: 84
A40: 3 | B40: Габдулхаков Л.З. | C40: Литература | E40: 34 | F40: 96.55 | I40: 3 | J40: Габдулхаков Л.З. | K40: Литература | M40: 34 | N40: 72.41 | Q40: 3 | R40: Гайнутдинова Л.П. | S40: Естествознания (химия) | U40: 29 | V40: 53.85 | Y40: 3 | Z40: Замалетдинова Л.А. | AA40: Литература | AC40: 25 | AD40: 76
A41: 4 | B41: Гилазова Г.Х. | C41: Иностранный язык | E41: 34 | F41: 100 | I41: 4 | J41: Хакимова Г.Р./Гилазова Г.Х. | K41: Иностранный язык | M41: 34 | N41: 92.86 | Q41: 4 | R41: Замалетдинова Л.А | S41: Литература | U41: 29 | V41: 84 | Y41: 4 | Z41: Хакимова Г.Р. | AA41: Иностранный язык | AC41: 25 | AD41: 96
A42: 5 | B42: Ульянова Е.С. | C42: Математика | E42: 34 | F42: 82.76 | I42: 5 | J42: Шаянов М.Х. | K42: Математика | M42: 34 | N42: 72.41 | Q42: 5 | R42: Гилазова Г.Х. | S42: Иностранный язык | U42: 29 | V42: 83.33 | Y42: 5 | Z42: Шаянов М.Х. | AA42: Математика | AC42: 25 | AD42: 56
A43: 6 | B43: Попова А.А. | C43: История | E43: 34 | F43: 93.1 | I43: 6 | J43: Попова А.А. | K43: История | M43: 34 | N43: 72.41 | Q43: 6 | R43: Шаянов М.Х. | S43: Математика | U43: 29 | V43: 54.11 | Y43: 6 | Z43: Попова А.А. | AA43: История | AC43: 25 | AD43: 87.5
A44: 7 | B44: Попова О.П. | C44: Физическая культура | E44: 34 | F44: 100 | I44: 7 | J44: Попова О.П. | K44: Физическая культура | M44: 34 | N44: 100 | Q44: 7 | R44: Попова А.А. | S44: История | U44: 29 | V44: 84 | Y44: 7 | Z44: Усманова В.Н. | AA44: Физическая культура | AC44: 25 | AD44: 100
A45: 8 | B45: Ливадная А.А. | C45: Основы безопасности жизнидеятельности | E45: 34 | F45: 100 | I45: 8 | J45: Ливадная А.А. | K45: Основы безопасности жизнидеятельности | M45: 34 | N45: 86.21 | Q45: 8 | R45: Усманова В.Н. | S45: Физическая культура | U45: 29 | V45: 100 | Y45: 8 | Z45: Ливадная А.А. | AA45: Основы безопасности жизнидеятельности | AC45: 25 | AD45: 100
A46: 9 | B46: Самойлова Л.А. | C46: Астрономия | E46: 34 | F46: 86.21 | I46: 9 | J46: Самойлова Л.А. | K46: Астрономия | M46: 34 | N46: 75 | Q46: 9 | R46: Леонтьев С.П. | S46: Основы безопасности жизнидеятельности | U46: 29 | V46: 88 | Y46: 9 | Z46: Самойлова Л.А. | AA46: Астрономия | AC46: 25 | AD46: 80
A47: 10 | B47: Ульянова Е.С. | C47: Информатика | E47: 34 | F47: 100 | I47: 10 | J47: Ульянова Е.С./Мусина М.В. | K47: Информатика | M47: 34 | N47: 92.86 | Q47: 10 | R47: Самойлова Л.А. | S47: Астрономия | U47: 29 | V47: 69.23 | Y47: 10 | Z47: Ульянова Е.С. | AA47: Информатика | AC47: 25 | AD47: 100
A48: 11 | B48: Самойлова Л.А. | C48: Физика | E48: 34 | F48: 72.41 | I48: 11 | J48: Самойлова Л.А. | K48: Физика | M48: 34 | N48: 71.43 | Q48: 11 | R48: Ульянова Е.С./Мусина М.В. | S48: Информатика | U48: 29 | V48: 100 | Y48: 11 | Z48: Ахметшин Р.Р. | AA48: Обществознание | AC48: 25 | AD48: 88
A49: 12 | B49: Гайнутдинова Л.П. | C49: Естествознание Химия | E49: 34 | F49: 62.07 | I49: 12 | J49: Гайнутдинова Л.П | K49: Химия | M49: 34 | N49: 65.52 | Q49: 12 | R49: Салихов А.Ш. | S49: Физика | U49: 29 | V49: 62.5 | Y49: 12 | Z49: Самойлова Л.А. | AA49: Физика | AC49: 25 | AD49: 68
A50: 13 | B50: Валеева А.Р. | C50: Естествознание Биология | E50: 34 | F50: 75.86 | I50: 13 | J50: Габдуллина Г.М. | K50: Родная литература | M50: 34 | N50: 96.55 | Q50: 13 | R50: Габдуллина Г.М. | S50: Родная литература | U50: 29 | V50: 96 | Y50: 13 | Z50: Садыкова Р.З. | AA50: Родная литература | AC50: 25 | AD50: 96
A51: 14 | I51: 14 | Q51: 14 | Y51: 14
A52: 15 | I52: 15 | Q52: 15 | Y52: 15
A53: 16 | I53: 16 | Q53: 16 | Y53: 16
A54: 17 | I54: 17 | Q54: 17 | Y54: 17
A55: 18 | I55: 18 | Q55: 18 | Y55: 18
A56: 19 | I56: 19 | Q56: 19 | Y56: 19
A57: 20 | I57: 20 | Q57: 20 | Y57: 20
A79: Мониторинг выявления соответствия сформированности умений и знаний требованиям ФГОС СПО (по итогам промежуточной аттестации) гр. КС-83 | I79: Мониторинг выявления соответствия сформированности умений и знаний требованиям ФГОС СПО (по итогам промежуточной аттестации) гр. МР-66 | Q79: Мониторинг выявления соответствия сформированности умений и знаний требованиям ФГОС СПО (по итогам промежуточной аттестации) гр. ОС-67 | Y79: Мониторинг выявления соответствия сформированности умений и знаний требованиям ФГОС СПО (по итогам промежуточной аттестации) гр. РАС-68
A81: № | B81: Фио преподавателя | C81: Дисциплина/МДК | E81: Кол-во обучающихся | F81: Качество успеваемости, % | G81: Качество успеваемости группы | I81: № | J81: Фио преподавателя | K81: Дисциплина/МДК | M81: Кол-во обучающихся | N81: Качество успеваемости, % | O81: Качество успеваемости группы | Q81: № | R81: Фио преподавателя | S81: Дисциплина/МДК | U81: Кол-во обучающихся | V81: Качество успеваемости, % | W81: Качество успеваемости группы | Y81: № | Z81: Фио преподавателя | AA81: Дисциплина/МДК | AC81: Кол-во обучающихся | AD81: Качество успеваемости, % | AE81: Качество успеваемости группы
A83: 1 | B83: Валеева А.Р. | C83: Естествознания (Биология) | E83: 33 | F83: 25 | G83: =SUM(F83:F95)/14 -> 56.31 | I83: 1 | J83: Гайнутдинова Л.П. | K83: Охрана труда | M83: 26 | N83: 46.15 | O83: =SUM(N83:N95)/14 -> 52.45 | Q83: 1 | R83: Хусаинова Э.Х. | S83: Литература | U83: 25 | V83: 96 | W83: =SUM(V83:V95)/14 -> 47.14 | Y83: 1 | Z83: Усманова В.Н. | AA83: Физическая культура | AC83: 30 | AD83: 85.71 | AE83: =SUM(AD83:AD95)/14 -> 76.68
A84: 2 | B84: Габдулхаков Л.З. | C84: Русский язык | E84: 33 | F84: 61.54 | I84: 2 | J84: Валеева А.Р. | K84: Естествознание (биология) | M84: 26 | N84: 34.62 | Q84: 2 | R84: Хакимова Г.Р. | S84: Иностранный язык | U84: 25 | V84: 72 | Y84: 2 | Z84: Ахметшин Р.Р. | AA84: История | AC84: 30 | AD84: 71.43
A85: 3 | B85: Габдулхаков Л.З. | C85: Литература | E85: 33 | F85: 57.69 | I85: 3 | J85: Мурашов А.Ф. | K85: Основы электротехники | M85: 26 | N85: 100 | Q85: 3 | R85: Шаянов М.Х. | S85: Математика | U85: 25 | V85: 50 | Y85: 3 | Z85: Прусова А.Г. | AA85: Инженерная графика | AC85: 30 | AD85: 68.97
A86: 4 | B86: Хакимова Г.Р./Заварихина Д.О | C86: Иностранный язык | E86: 33 | F86: 84.62 | I86: 4 | J86: Усманова В.Н. | K86: Физическая культура | M86: 26 | N86: 100 | Q86: 4 | R86: Попова О.П. | S86: Физ.культура | U86: 25 | V86: 100 | Y86: 4 | Z86: Мурашов А.Ф. | AA86: Электротехника | AC86: 30 | AD86: 100
A87: 5 | B87: Шаянов М.Х. | C87: Математика | E87: 33 | F87: 41.67 | I87: 5 | J87: Шахтин К.А. | K87: МДК 01.01 | M87: 26 | N87: 64 | Q87: 5 | R87: Леонтьев С.П. | S87: ОБЖ | U87: 25 | V87: 50 | Y87: 5 | Z87: Ишметова Л.И. | AA87: Экономика организации | AC87: 30 | AD87: 100
A88: 6 | B88: Попова А.А. | C88: История | E88: 33 | F88: 58.33 | I88: 6 | J88: Гилазова Г.Х. | K88: Иностранный язык | M88: 26 | N88: 60 | Q88: 6 | R88: Мусина М.В. | S88: Информатика | U88: 25 | V88: 72 | Y88: 6 | Z88: Ишметова Л.И. | AA88: Экономика организации курсовой проект | AC88: 30 | AD88: 89.33
A89: 7 | B89: Усманова В.Н. | C89: Физическая культура | E89: 33 | F89: 100 | I89: 7 | J89: Замалетдинова Л.А. | K89: Литература | M89: 26 | N89: 66.67 | Q89: 7 | R89: Садыкова Р.З. | S89: Родная литература | U89: 25 | V89: 100 | Y89: 7 | Z89: Соколов В.С. | AA89: Материаловедение, электрорадиоматериалы и радиокомпоненты | AC89: 30 | AD89: 90.91
A90: 8 | B90: Леонтьев С.П. | C90: Основы безопасности жизнидеятельности | E90: 33 | F90: 58.33 | I90: 8 | J90: Беляев С.А. | K90: Основы автоматизации производства | M90: 26 | N90: 83.33 | Q90: 8 | R90: Валентин Г.С. | S90: МДК.02.01 | U90: 25 | V90: 60 | Y90: 8 | Z90: Ушенина А.В. | AA90: Электрорадиоизмерения | AC90: 30 | AD90: 61.54
A91: 9 | B91: Самойлова Л.А. | C91: Астрономия | E91: 33 | F91: 48 | I91: 9 | J91: Садыкова Р.З. | K91: Математика | M91: 26 | N91: 57.69 | Q91: 9 | R91: Валентин Г.С. | S91: УП 02 | U91: 25 | V91: 60 | Y91: 9 | Z91: Чичарина Л.А. | AA91: Технологии бережливого производства | AC91: 30 | AD91: 86.67
A92: 10 | B92: Ульянова Е.С./Мусина М.В. | C92: Информатика | E92: 33 | F92: 76 | I92: 10 | J92: Беляев С.А. | K92: Основы электроматериаловедения | M92: 26 | N92: 68 | Q92: 10 | Y92: 10 | Z92: Кузнецова В.М. | AA92: Правовое обеспечение профессиональной деятельности | AC92: 30 | AD92: 66.67
A93: 12 | B93: Самойлова Л.А. | C93: Физика | E93: 33 | F93: 40 | I93: 12 | K93: УП 01 | M93: 26 | N93: 53.85 | Q93: 12 | Y93: 12 | Z93: Горбунов И.А. | AA93: Радиотехнические цепи и сигналы | AC93: 30 | AD93: 88.89
A94: 13 | B94: Габдуллина Г.М. | C94: Родная литература | E94: 33 | F94: 95.83 | I94: 13 | Q94: 13 | Y94: 13 | Z94: Бикмузаметова Р.Р. | AA94: МДК 04.01 | AC94: 30 | AD94: 63.33
A95: 14 | B95: Гайнутдинова Л.П. | C95: Естествознания (Химия) | E95: 33 | F95: 41.31 | I95: 14 | Q95: 14 | Y95: 14 | Z95: Бикмузаметова Р.Р. | AA95: УП.04 | AC95: 30 | AD95: 100
A96: 15 | I96: 15 | Q96: 15 | Y96: 15 | Z96: Мурашов А.Ф. | AA96: ПП.04 | AC96: 30 | AD96: 86.21
A97: 16 | I97: 16 | Q97: 16 | Y97: 16 | Z97: Насыбуллин А.Р. | AA97: Квалификац.Экз по ПМ.04 | AC97: 30 | AD97: 66.67
A98: 17 | I98: 17 | Q98: 17 | Y98: 17 | Z98: Галиуллин Э.Ф./ Горбунов И.А. | AA98: Электронная техника (экзамен) | AC98: 30 | AD98: 88.89
A99: 18 | I99: 18 | Q99: 18 | Y99: 18
A100: 19 | I100: 19 | Q100: 19 | Y100: 19
A101: 20 | I101: 20 | Q101: 20 | Y101: 20
A116: Мониторинг выявления соответствия сформированности умений и знаний требованиям ФГОС СПО (по итогам промежуточной аттестации) гр. МТО-69 | I116: Мониторинг выявления соответствия сформированности умений и знаний требованиям ФГОС СПО (по итогам промежуточной аттестации) гр. ТМ-70 | Q116: Мониторинг выявления соответствия сформированности умений и знаний требованиям ФГОС СПО (по итогам промежуточной аттестации) гр. УК-71 | Y116: Мониторинг выявления соответствия сформированности умений и знаний требованиям ФГОС СПО (по итогам промежуточной аттестации) гр. СКД-72
A118: № | B118: Фио преподавателя | C118: Дисциплина/МДК | E118: Кол-во обучающихся | F118: Качество успеваемости, % | G118: Качество успеваемости группы | I118: № | J118: Фио преподавателя | K118: Дисциплина/МДК | M118: Кол-во обучающихся | N118: Качество успеваемости, % | O118: Качество успеваемости группы | Q118: № | R118: Фио преподавателя | S118: Дисциплина/МДК | U118: Кол-во обучающихся | V118: Качество успеваемости, % | W118: Качество успеваемости группы | Y118: № | Z118: Фио преподавателя | AA118: Дисциплина/МДК | AC118: Кол-во обучающихся | AD118: Качество успеваемости, % | AE118: Качество успеваемости группы
A120: 1 | B120: Гайнутдинова Л.П. | C120: Охрана труда | E120: 27 | F120: 88.89 | G120: =SUM(F120:F132)/14 -> 62.17 | I120: 1 | J120: Низамутдинова Е.В. | K120: техническая механика | M120: 25 | N120: 72.22 | O120: =SUM(N120:N132)/14 -> 54.53 | Q120: 1 | R120: Прусова Н.Г. | S120: Компьютерное моделирование | U120: 22 | V120: 81.82 | W120: =SUM(V120:V132)/14 -> 51.82 | Y120: 1 | Z120: Липатова О.А. | AA120: МДК 01.01 | AC120: 26 | AD120: 95.83 | AE120: =SUM(AD120:AD132)/14 -> 44.86
A121: 2 | B121: Прусова Н.Г. | C121: Инженерная графика | E121: 27 | F121: 96.3 | I121: 2 | J121: Попова О.П. | K121: Физическая культура | M121: 25 | Q121: 2 | R121: Чичарина Л.А. | S121: Средства и методы измерения | U121: 22 | V121: 85.71 | Y121: 2 | Z121: Ульянова Е.С. | AA121: Информационные ресурсы | AC121: 26 | AD121: 93.75
A122: 3 | B122: Попова О.П. | C122: Физическая ккультура | E122: 27 | I122: 3 | J122: Габдулхаков Л.З. | K122: русский язык и культура речи | M122: 25 | N122: 81.82 | Q122: 3 | R122: Низамутдинова Е.В. | S122: Техническая механика | U122: 22 | V122: 85.71 | Y122: 3 | Z122: Ливадная А.А. | AA122: БЖД | AC122: 26 | AD122: 73.08
A123: 4 | B123: Горбунов И.А. | C123: Радиотехнические цепи и сигналы | E123: 27 | F123: 100 | I123: 4 | J123: Прусова И.А. | K123: Инженерная графика | M123: 25 | N123: 88.24 | Q123: 4 | R123: Леонтьев С.П. | S123: БЖД | U123: 22 | V123: 81.82 | Y123: 4 | Z123: Усманова В.Н. | AA123: Физическая культура | AC123: 26
A124: 5 | C124: Квалификац.Экз по ПМ.04 | E124: 27 | F124: 92.59 | I124: 5 | J124: Низамутдинова Е.В. | K124: технологические оборудование | M124: 25 | N124: 45 | Q124: 5 | R124: Даминова Н.Р. | S124: МДК 04.01 | U124: 22 | V124: 100 | Y124: 5 | Z124: Ливадная А.А. | AA124: История мировой культуры | AC124: 26 | AD124: 73.08
A125: 6 | B125: Бикмухаметова Р.Р. | C125: УП 04 | E125: 27 | F125: 100 | I125: 6 | J125: Гайнутдинова Л.П. | K125: охрана труда | M125: 25 | N125: 56 | Q125: 6 | R125: Даминова Н.Р. | S125: УП 04 | U125: 22 | V125: 95.45 | Y125: 6 | Z125: Агафонов С.Е. | AA125: МДК02.01 | AC125: 26 | AD125: 73.08
A126: 7 | B126: Ушенина А.В. | C126: ПП.04 | E126: 27 | F126: 100 | I126: 7 | J126: Низамутдинова Е.В. | K126: гидравлические пневм системы | M126: 25 | N126: 75 | Q126: 7 | R126: Коклюгина Н.А, | S126: ПП 04 | U126: 22 | V126: 100 | Y126: 7 | Z126: Агафонов С.Е. | AA126: МДК02.02 | AC126: 26 | AD126: 73.08
A127: 8 | B127: Бикмухаметова Р.Р. | C127: МДК 04.01 | E127: 27 | F127: 92.59 | I127: 8 | J127: Сионков Д.И. | K127: МДК 04 01 | M127: 25 | N127: 35.29 | Q127: 8 | R127: Даминова Н.Р. | S127: Квал.экзамен по ПМ 04 | U127: 22 | V127: 95 | Y127: 8 | Z127: Ливадная А.А. | AA127: УП.01 | AC127: 26 | AD127: 73.08
A128: 9 | B128: Садыкова Р.З. | C128: Математика | E128: 27 | F128: 100 | I128: 9 | J128: Сионков Д.И. | K128: УП 04 | M128: 25 | N128: 52.63 | Q128: 9 | R128: Усманова В.Н. | S128: Физическая культура | U128: 22 | Y128: 9 | Z128: Ливадная А.А. | AA128: УП.02 | AC128: 26 | AD128: 73.08
A129: 10 | B129: Мурашов А.Ф. | C129: Электротехника | E129: 27 | F129: 100 | I129: 10 | J129: Сионков Д.И. | K129: ПП.04 | M129: 25 | N129: 75 | Q129: 10 | Y129: 10
A130: 12 | I130: 12 | K130: кв экзамен по ПМ 04 | M130: 25 | N130: 50 | Q130: 12 | Y130: 12
A131: 13 | I131: 13 | J131: Липатова О.А. | K131: Основы философии | M131: 25 | N131: 68.18 | Q131: 13 | Y131: 13
A132: 14 | I132: 14 | J132: Ишметова Л.И. | K132: основы финансовой грамотности | M132: 25 | N132: 64 | Q132: 14 | Y132: 14
A133: 15 | I133: 15 | Q133: 15 | Y133: 15
A134: 16 | I134: 16 | Q134: 16 | Y134: 16
A135: 17 | I135: 17 | Q135: 17 | Y135: 17
A136: 18 | I136: 18 | Q136: 18 | Y136: 18
A137: 19 | I137: 19 | Q137: 19 | Y137: 19
A138: 20 | I138: 20 | Q138: 20 | Y138: 20
A160: Мониторинг выявления соответствия сформированности умений и знаний требованиям ФГОС СПО (по итогам промежуточной аттестации) гр.КС-73 | I160: Мониторинг выявления соответствия сформированности умений и знаний требованиям ФГОС СПО (по итогам промежуточной аттестации) гр.ЭП-60 | Q160: Мониторинг выявления соответствия сформированности умений и знаний требованиям ФГОС СПО (по итогам промежуточной аттестации) гр.РАС-61 | Y160: Мониторинг выявления соответствия сформированности умений и знаний требованиям ФГОС СПО (по итогам промежуточной аттестации) гр.МТО-62
A162: № | B162: Фио преподавателя | C162: Дисциплина/МДК | E162: Кол-во обучающихся | F162: Качество успеваемости, % | G162: Качество успеваемости группы | I162: № | J162: Фио преподавателя | K162: Дисциплина/МДК | M162: Кол-во обучающихся | N162: Качество успеваемости, % | O162: Качество успеваемости группы | Q162: № | R162: Фио преподавателя | S162: Дисциплина/МДК | U162: Кол-во обучающихся | V162: Качество успеваемости, % | W162: Качество успеваемости группы | Y162: № | Z162: Фио преподавателя | AA162: Дисциплина/МДК | AC162: Кол-во обучающихся | AD162: Качество успеваемости, % | AE162: Качество успеваемости группы
A164: 1 | B164: Садыкова Р.З. | C164: Элементы высшей математики и Теория вепроятностей и математическая статистика | E164: 34 | F164: 73.53 | G164: =SUM(F164:F176)/14 -> 64.40 | I164: 1 | J164: Гилазова Г.Х./Хакимова Г.Р. | K164: Иностранный язык | M164: 29 | N164: 89.66 | O164: =SUM(N164:N176)/14 -> 60.41 | Q164: 1 | R164: Липатова О.А. | S164: Основы философии | U164: 29 | V164: 95.45 | W164: =SUM(V164:V176)/14 -> 72.10 | Y164: 1 | Z164: Попова О.П. | AA164: Физическая культура | AC164: 28 | AD164: 77.98 | AE164: =SUM(AD164:AD176)/14 -> 53.93
A165: 2 | B165: Кузнецова В.М. | C165: Правовое обеспечение в ПД | E165: 34 | F165: 79.41 | I165: 2 | J165: Горбунов И.А. | K165: Метрология | M165: 29 | N165: 84 | Q165: 2 | R165: Усманова В.Н. | S165: Физическая культура | U165: 29 | Y165: 2 | Z165: Самойлова Л.А. | AA165: Физика | AC165: 28 | AD165: 66.67
A166: 3 | B166: Габдулхаков Л.З. | C166: Русский язык и культура речи | E166: 34 | F166: 53.13 | I166: 3 | J166: Усманова В.Н. | K166: Физкультура | M166: 29 | Q166: 3 | R166: Соколов В.С. | S166: Информ. техн. профдеят. ИТПД | U166: 29 | V166: 81.82 | Y166: 3 | Z166: Ишметова Л.И. | AA166: Экономика организации | AC166: 28 | AD166: 88
A167: 4 | B167: Прусова И.А. | C167: Инженерная графика | E167: 34 | F167: 57.58 | I167: 4 | J167: Загидуллин Р.М. | K167: Радиоприемнное устройство | M167: 29 | N167: 86.21 | Q167: 4 | R167: Леонтьев С.П. | S167: БЖД | U167: 29 | V167: 76.92 | Y167: 4 | Z167: Ишметова Л.И. | AA167: Экономика организации (курсовой проект) | AC167: 28 | AD167: 88
A168: 5 | B168: Ишметова Л.И. | C168: Психология общения | E168: 34 | F168: 76.47 | I168: 5 | J168: Бикмухаметова Р.Р./ | K168: МДК 01.01 | M168: 29 | N168: 77.78 | Q168: 5 | R168: Ушенина А.В. | S168: Основы программирования | U168: 29 | V168: 84 | Y168: 5 | Z168: Соколов В.С. | AA168: Материаловедение | AC168: 28 | AD168: 91.3
A169: 6 | B169: Ишметова Л.И. | C169: Экономика организации | E169: 34 | F169: 70.37 | I169: 6 | J169: Галиуллин Э.Ф. | K169: МДК 01.02 | M169: 29 | N169: 96.15 | Q169: 6 | R169: Беляев С.А. | S169: МДК 02.01.( курсовой проект) | U169: 29 | V169: 65.38 | Y169: 6 | Z169: Вальяров М.Э. | AA169: Микропроцессорные системы | AC169: 28 | AD169: 62.53
A170: 7 | B170: Ишметова Л.И. | C170: Экономика организации Курс проект | E170: 34 | F170: 70.37 | I170: 7 | J170: Загидуллин Р.М. | K170: МДК 01.03 | M170: 29 | N170: 93.1 | Q170: 7 | R170: Бикмухаметова Р.Р. | S170: МДК 01.01 (экзамен) | U170: 29 | V170: 82.76 | Y170: 7 | Z170: Соколов В.С. | AA170: Прикладное программное обеспечение профессиональной деятельности | AC170: 28 | AD170: 95.83
A171: 8 | B171: Попова О.П. | C171: Физическая культура | E171: 34 | I171: 8 | J171: Бикмухаметова Р.Р./ Галиуллин Э.Ф./ Загидуллин Р.М. | K171: УП.01 Учебная практика | M171: 29 | N171: 96.55 | Q171: 8 | R171: Мурашов А.Ф. | S171: МДК 01.02 (диф. зачет) | U171: 29 | V171: 91.3 | Y171: 8 | Z171: Загидуллин Р.М. | AA171: РПУ | AC171: 28 | AD171: 88.46
A172: 9 | B172: Леонтьев С.П. | C172: Безопасность жизнедеятельности | E172: 34 | F172: 51.72 | I172: 9 | J172: Соколов В.С. | K172: ПП 01 (диф.зач) | M172: 29 | N172: 92.59 | Q172: 9 | R172: Галиуллин Э.Ф. | S172: МДК 01.03 (диф. зачет) | U172: 29 | V172: 88 | Y172: 9 | Z172: Ишметова Л.И. | AA172: Коммуникативный практикум | AC172: 28 | AD172: 96.3
A173: 10 | B173: Мурашов А.Ф. | C173: Электротехнические измерение | E173: 34 | F173: 75 | I173: 10 | K173: Квалификационный экзамен ПМ 01 | M173: 29 | N173: 60.71 | Q173: 10 | R173: Загидуллин Р.М. | S173: МДК 01.04 (диф. зачет) | U173: 29 | V173: 96.55 | Y173: 10
A174: 12 | B174: Ульянова Е.С. | C174: МДК 04.01 | E174: 34 | F174: 96.97 | I174: 12 | J174: Соколов В.С. | K174: МДК 02.01 | M174: 29 | N174: 68.97 | Q174: 12 | R174: Горбунов И.А. | S174: ПП 01 (диф. зачет) | U174: 29 | V174: 96.3 | Y174: 12
A175: 13 | B175: Ульянова Е.С. | C175: УП 04 | E175: 34 | F175: 97.06 | I175: 13 | Q175: 13 | S175: Квалиф. экзамен ПМ 01 | U175: 29 | V175: 58.62 | Y175: 13
A176: 14 | B176: Ульянова Е.С. | C176: ПП 04 | E176: 34 | F176: 100 | I176: 14 | Q176: 14 | R176: Бикмухаметова Р.Р./ Галиуллин Э.Ф./ Загидуллин Р.М. | S176: УП 01 | U176: 29 | V176: 92.31 | Y176: 14
A177: 15 | B177: Пашин Н.П. | C177: Квали.экз. ПМ04 | E177: 34 | F177: 100 | I177: 15 | Q177: 15 | Y177: 15
A178: 16 | I178: 16 | Q178: 16 | Y178: 16
A179: 17 | I179: 17 | Q179: 17 | Y179: 17
A180: 18 | I180: 18 | Q180: 18 | Y180: 18
A181: 19 | I181: 19 | Q181: 19 | Y181: 19
A182: 20 | I182: 20 | Q182: 20 | Y182: 20
A194: Мониторинг выявления соответствия сформированности умений и знаний требованиям ФГОС СПО (по итогам промежуточной аттестации) гр.ТМ-63 | I194: Мониторинг выявления соответствия сформированности умений и знаний требованиям ФГОС СПО (по итогам промежуточной аттестации) гр.СКД-64 | Q194: Мониторинг выявления соответствия сформированности умений и знаний требованиям ФГОС СПО (по итогам промежуточной аттестации) гр.КС-74
A196: № | B196: Фио преподавателя | C196: Дисциплина/МДК | E196: Кол-во обучающихся | F196: Качество успеваемости, % | G196: Качество успеваемости группы | I196: № | J196: Фио преподавателя | K196: Дисциплина/МДК | M196: Кол-во обучающихся | N196: Качество успеваемости, % | O196: Качество успеваемости группы | Q196: № | R196: Фио преподавателя | S196: Дисциплина/МДК | U196: Кол-во обучающихся | V196: Качество успеваемости, % | W196: Качество успеваемости группы
A198: 1 | B198: Ахметшин Р.Р. | C198: История | E198: 24 | F198: 91.67 | G198: =SUM(F198:F210)/14 -> 60.56 | I198: 1 | J198: Попова А.А. | K198: История | M198: 23 | N198: 95.65 | O198: =SUM(N198:N206)/9 -> 80.68 | Q198: 1 | R198: Попова О.П. | S198: Физическая культура | U198: 15 | V198: 39.39 | W198: =SUM(V198:V206)/9 -> 57.82
A199: 2 | B199: Попова О.П. | C199: Физическая культура | E199: 24 | I199: 2 | J199: Усманова В.Н. | K199: Физическая культура | M199: 23 | Q199: 2 | R199: Мусина М.В. | S199: Базы данных | U199: 15 | V199: 33.33
A200: 3 | B200: Шаянов М.Х. | C200: Математика | E200: 24 | F200: 73.91 | I200: 3 | J200: Садыкова Р.З. | K200: Татарский язык и культура речи | M200: 23 | N200: 91.3 | Q200: 3 | R200: Мусина М.В. | S200: Основы алгоритмизации | U200: 15 | V200: 33.33
A201: 4 | B201: Валеева А.Р. | C201: Основы промышленной экологии | E201: 24 | F201: 86.36 | I201: 4 | J201: Гайнутдинова Л.П. | K201: Экологические основы природопользования | M201: 23 | N201: 86.96 | Q201: 4 | R201: Гилазова Г.Х. | S201: Иностранный язык | U201: 15 | V201: 64.29
A202: 5 | B202: Халилова Л.М. | C202: Технологическая оснастка | E202: 24 | F202: 75 | I202: 5 | J202: Липатова О.А. | K202: Народное художественное творчество | M202: 23 | N202: 86.96 | Q202: 5 | R202: Мусина М.В. | S202: Операциооные системы исреды | U202: 15 | V202: 50
A203: 6 | B203: Ишметова Л.И. | C203: Основы экономики организации и правового обеспечения в проф. деят. | E203: 24 | F203: 70.83 | I203: 6 | J203: Липатова О.А. | K203: Народное художественное творчество (курсовой проект) | M203: 23 | N203: 82.61 | Q203: 6 | R203: Вальяров М.Э. | S203: МДК 02.01 Микропроцессорные системы | U203: 15 | V203: 80
A204: 7 | B204: Хамидуллина А.Р, | C204: Программирование для автоматизированного оборудования | E204: 24 | F204: 66.67 | I204: 7 | J204: Агафонов С.Е. | K204: МДК 02.01 | M204: 23 | N204: 91.3 | Q204: 7 | R204: Загидуллин Р.М. | S204: МДК 01.01 | U204: 15 | V204: 60
A205: 8 | B205: Ливадная А.А. | C205: БЖД | E205: 24 | F205: 91.67 | I205: 8 | J205: Бородина Н.Н. | K205: МДК 03.01 | M205: 23 | N205: 91.3 | Q205: 8 | R205: Галиуллин Э.Ф. | S205: МДК 01.02 | U205: 15 | V205: 100
A206: 9 | C206: Квалификац.Экз по ПМ.03 | E206: 24 | F206: 58.33 | I206: 9 | J206: Кузнецова В.М. | K206: Правовое обеспечение в проф.деятельности | M206: 23 | N206: 100 | Q206: 9 | S206: УП 01 | U206: 15 | V206: 60
A207: 10 | B207: Пирогова Т.П. | C207: ПП 03 ДифЗач | E207: 24 | F207: 91.67 | I207: 10 | Q207: 10 | R207: Ушенина А.В. | S207: ПП 01 | U207: 15 | V207: 100
A208: 12 | B208: Пирогова Т.П. | C208: УП 03 | E208: 24 | F208: 70.83 | I208: 12 | Q208: 12 | S208: Квалиф.экзамен ПМ 01 | U208: 15 | V208: 60
A209: 13 | B209: Пирогова Т.П. | C209: МДК.03.01 | E209: 24 | F209: 70.83 | I209: 13 | Q209: 13
A210: 14 | I210: 14 | Q210: 14
A211: 15 | I211: 15 | Q211: 15
A212: 16 | I212: 16 | Q212: 16
A213: 17 | I213: 17 | Q213: 17
A214: 18 | I214: 18 | Q214: 18
A215: 19 | I215: 19 | Q215: 19
A216: 20 | I216: 20 | Q216: 20
A236: Мониторинг выявления соответствия сформированности умений и знаний требованиям ФГОС СПО (по итогам промежуточной аттестации) гр.РАС-53 | I236: Мониторинг выявления соответствия сформированности умений и знаний требованиям ФГОС СПО (по итогам промежуточной аттестации) гр.ЭП-54 | Q236: Мониторинг выявления соответствия сформированности умений и знаний требованиям ФГОС СПО (по итогам промежуточной аттестации) гр.ЭП-65/55 | Y236: Мониторинг выявления соответствия сформированности умений и знаний требованиям ФГОС СПО (по итогам промежуточной аттестации) гр.СКД-56
A238: № | B238: Фио преподавателя | C238: Дисциплина/МДК | E238: Кол-во обучающихся | F238: Качество успеваемости, % | G238: Качество успеваемости группы | I238: № | J238: Фио преподавателя | K238: Дисциплина/МДК | M238: Кол-во обучающихся | N238: Качество успеваемости, % | O238: Качество успеваемости группы | Q238: № | R238: Фио преподавателя | S238: Дисциплина/МДК | U238: Кол-во обучающихся | V238: Качество успеваемости, % | W238: Качество успеваемости группы | Y238: № | Z238: Фио преподавателя | AA238: Дисциплина/МДК | AC238: Кол-во обучающихся | AD238: Качество успеваемости, % | AE238: Качество успеваемости группы
A240: 1 | B240: Усманова В.Н, | C240: Физическая культура | E240: 31 | F240: 100 | G240: =SUM(F240:F252)/14 -> 35.67 | I240: 1 | J240: Галиуллин Э.Ф. | K240: Вычислительная техника | M240: 28 | N240: 100 | O240: =SUM(N240:N245)/6 -> 89.07 | Q240: 1 | S240: Вычислительная техника | U240: 10 | W240: =SUM(V240:V246)/7 -> 64.13 | Y240: 1 | Z240: Липатова О.А. | AA240: Основы философии | AC240: 14 | AD240: 100 | AE240: =SUM(AD240:AD245)/6 -> 97.62
A241: 2 | B241: Галиуллин Э.Ф. | C241: Вычислительная техника | E241: 31 | F241: 66.67 | I241: 2 | J241: Кузнецова В.М. | K241: Правовое обеспечение ПД | M241: 28 | N241: 81.48 | Q241: 2 | S241: Правовое обеспечение ПД | U241: 10 | V241: 100 | Y241: 2 | Z241: Ишметова Л.И. | AA241: Психология общения | AC241: 14 | AD241: 100
A242: 3 | B242: Ушенина А.В. | C242: Программирование микропроцессорных систем | E242: 31 | F242: 47.06 | I242: 3 | J242: Горбунов И.А. | K242: МДК 03.01 | M242: 28 | N242: 81.48 | Q242: 3 | S242: МДК 03.01 | U242: 10 | V242: 80 | Y242: 3 | Z242: Ахметшин Р.Р. | AA242: История отечественной культуры | AC242: 14 | AD242: 85.71
A243: 4 | B243: Загидуллин Р.Ш. | C243: МДК 03.02 | E243: 31 | F243: 100 | I243: 4 | J243: Пирогова Т.П. | K243: МДК 03.02 | M243: 28 | N243: 78.57 | Q243: 4 | S243: МДК 03.02 | U243: 10 | V243: 88.89 | Y243: 4 | Z243: Хусаинова Э.Х. | AA243: Отечественная литература | AC243: 14 | AD243: 100
A244: 5 | B244: Пирогова Т.П. | C244: УП 03 | E244: 31 | F244: 85.71 | I244: 5 | K244: Уп03 | M244: 28 | N244: 92.86 | Q244: 5 | S244: Уп03 | U244: 10 | V244: 100 | Y244: 5 | Z244: Бородина Н.Н. | AA244: МДК 03.01 | AC244: 14 | AD244: 100
A245: 6 | B245: Соколов В.С, | C245: ПП 03 | E245: 31 | F245: 100 | I245: 6 | J245: Горбунов И.А. | K245: ПП 03 | M245: 28 | N245: 100 | Q245: 6 | S245: ПП 03 | U245: 10 | Y245: 6 | Z245: Ишметова Л.И. | AA245: ПП 03 | AC245: 14 | AD245: 100
A246: 7 | B246: Насыбуллин А.Р, | C246: ПМ.03 | I246: 7 | Q246: 7 | S246: МДК 03.01 Курсовая работа | U246: 10 | V246: 80 | Y246: 7
A247: 8 | I247: 8 | Q247: 8 | Y247: 8
A248: 9 | I248: 9 | Q248: 9 | Y248: 9
A249: 10 | I249: 10 | Q249: 10 | Y249: 10
A250: 12 | I250: 12 | Q250: 12 | Y250: 12
A251: 13 | I251: 13 | Q251: 13 | Y251: 13
A252: 14 | I252: 14 | Q252: 14 | Y252: 14
A253: 15 | I253: 15 | Q253: 15 | Y253: 15
A254: 16 | I254: 16 | Q254: 16 | Y254: 16
A255: 17 | I255: 17 | Q255: 17 | Y255: 17
A256: 18 | I256: 18 | Q256: 18 | Y256: 18
A257: 19 | I257: 19 | Q257: 19 | Y257: 19
A258: 20 | I258: 20 | Q258: 20 | Y258: 20
A284: Мониторинг выявления соответствия сформированности умений и знаний требованиям ФГОС СПО (по итогам промежуточной аттестации) гр.ТР-57
A286: № | B286: Фио преподавателя | C286: Дисциплина/МДК | E286: Кол-во обучающихся | F286: Качество успеваемости, % | G286: Качество успеваемости группы
A288: 1 | B288: Хакимова Г.Р. | C288: Иностранный язык | E288: 15 | F288: 75 | G288: =SUM(F288:F293)/6 -> 77.26
A289: 2 | B289: Попова О.П. | C289: Физическая культура | E289: 15 | F289: 100
A290: 3 | B290: Ишметова Л.И, | C290: Основы социальной психологии и делового общения | E290: 15 | F290: 100
A291: 4 | B291: Леонтьев С.П, | C291: БЖД | E291: 15 | F291: 60
A292: 5 | B292: Соколов В.С. | C292: Информационные технологии в профессиональной деятельности | E292: 15 | F292: 57.14
A293: 6 | B293: Чичарина Л.А. | C293: МДК 02.01 | E293: 15 | F293: 71.43
A294: 7 | C294: УП 02 | E294: 15 | F294: 84.62
A295: 8 | B295: Чичарина Л.А, | C295: ПП 02 | E295: 15 | F295: 80
A296: 9
A297: 10
A298: 12
A299: 13
A300: 14
A301: 15
A302: 16
A303: 17
A304: 18
A305: 19
A306: 20

Sheet Лист2

Sheet Лист3
